bitfinex-derivatives/quotes_BNBF0:USTF0_20251225
["timestamp","ask_amount","ask_price","bid_price","bid_amount"]
[1766683770048,0.68412719,840.96,840.01,1.7848977]
[1766683770251,0.68412719,840.95,840.01,1.7848977]
[1766683770454,0.68412719,840.94,840.01,1.7848977]
[1766683770654,0.68412719,840.93,840.01,1.7848977]
[1766683770854,0.68412719,840.92,840.01,1.7848977]
[1766683771153,0.68412719,840.91,840.01,1.7848977]
[1766683771350,0.68412719,840.9,840.01,1.7848977]
[1766683771554,0.68412719,840.89,840.01,1.7848977]
[1766683771754,0.68412719,840.88,840.01,1.7848977]
[1766683771954,0.68412719,840.87,840.01,1.7848977]
[1766683772251,0.68412719,840.86,840.01,1.7848977]
[1766683772454,0.68412719,840.85,840.01,1.7848977]
[1766683772656,0.68412719,840.84,840.01,1.7848977]
[1766683772855,0.68412719,840.83,840.01,1.7848977]
[1766683773056,0.68412719,840.82,840.01,1.7848977]
[1766683773254,0.68412719,840.81,840.01,1.7848977]
[1766683773451,0.68412719,840.8,840.01,1.7848977]
[1766683773652,0.68412719,840.79,840.01,1.7848977]
[1766683773856,0.68412719,840.78,840.01,1.7848977]
[1766683774156,13.02141533,840.83,840.01,1.7848977]
[1766683774354,0.68419026,840.82,840.01,1.7848977]
[1766683774556,0.68419026,840.81,840.01,1.7848977]
[1766683774755,0.68419026,840.8,840.01,1.7848977]
[1766683774954,0.68419026,840.79,840.01,1.7848977]
[1766683775257,0.68419026,840.78,840.01,1.7848977]
[1766683775457,13.02141533,840.83,840.01,1.7848977]
[1766683775655,0.68419187,840.82,840.01,1.7848977]
[1766683775853,0.68419187,840.81,840.01,1.7848977]
[1766683776057,0.68419187,840.8,840.01,1.7848977]
[1766683776357,13.02141533,840.83,840.01,1.7848977]
[1766683776358,0.68419187,840.79,840.01,1.7848977]
[1766683776555,0.68419187,840.78,840.01,1.7848977]
[1766683776758,0.89110815,841.05,840.01,1.7848977]
[1766683776957,0.68419343,841.04,840.01,1.7848977]
[1766683777155,0.68419343,841.03,840.01,1.7848977]
[1766683777357,0.68419343,841.02,840.01,1.7848977]
[1766683777656,0.68419343,841.01,840.01,1.7848977]
[1766683777857,0.68419343,841.0,840.01,1.7848977]
[1766683778058,0.68419343,840.99,840.01,1.7848977]
[1766683778260,0.68419343,840.98,840.01,1.7848977]
[1766683778460,0.68419343,840.97,840.01,1.7848977]
[1766683778655,0.68419343,840.96,840.01,1.7848977]
[1766683778857,0.68419343,840.95,840.01,1.7848977]
[1766683779158,0.68419343,840.94,840.01,1.7848977]
[1766683779357,0.68419343,840.93,840.01,1.7848977]
[1766683779658,0.68419343,840.92,840.01,1.7848977]
[1766683779859,0.68419343,840.91,840.01,1.7848977]
[1766683780058,0.68419343,840.9,840.01,1.7848977]
[1766683780263,0.68419343,840.89,840.01,1.7848977]
[1766683780464,13.52974531,840.88,840.01,1.7848977]
[1766683780665,0.68419343,840.87,840.01,1.7848977]
[1766683780959,0.68419343,840.86,840.01,1.7848977]
[1766683781160,0.68419343,840.85,840.01,1.7848977]
[1766683781364,0.68419343,840.84,840.01,1.7848977]
[1766683781564,0.68419343,840.83,840.01,1.7848977]
[1766683781766,0.68419343,840.82,840.01,1.7848977]
[1766683781966,0.68419343,840.81,840.01,1.7848977]
[1766683782162,0.68419343,840.8,840.01,1.7848977]
[1766683782362,12.84555188,840.88,840.01,1.7848977]
[1766683782363,0.68419343,840.79,840.01,1.7848977]
[1766683782569,0.68419343,840.78,840.01,1.7848977]
[1766683782868,12.84555188,840.88,840.01,1.7848977]
[1766683783163,0.68422385,840.87,840.01,1.7848977]
[1766683783370,0.68422385,840.86,840.02,1.7848977]
[1766683783568,0.68422385,840.85,840.02,1.7848977]
[1766683783768,0.68422385,840.84,840.02,1.7848977]
[1766683783962,0.68422385,840.83,840.02,1.7848977]
[1766683784165,0.68422385,840.82,840.02,1.7848977]
[1766683784368,0.68422385,840.81,840.02,1.7848977]
[1766683784568,0.68422385,840.8,840.02,1.7848977]
[1766683784766,0.68422385,840.79,840.02,1.7848977]
[1766683784969,0.68422385,840.78,840.02,1.7848977]
[1766683785169,0.68422385,840.77,840.02,1.7848977]
[1766683785365,0.89110815,841.04,840.02,1.7848977]
[1766683785668,13.47804532,841.03,840.02,1.7848977]
[1766683785866,0.68426165,841.02,840.02,1.7848977]
[1766683786070,0.68426165,841.01,840.03,1.7848977]
[1766683786265,0.68426165,841.0,840.03,1.7848977]
[1766683786469,0.68426165,840.99,840.03,1.7848977]
[1766683786672,0.68426165,840.98,840.03,1.7848977]
[1766683786871,0.68426165,840.97,840.03,1.7848977]
[1766683787071,0.68426165,840.96,840.03,1.7848977]
[1766683787266,0.68426165,840.95,840.03,1.7848977]
[1766683787471,0.68426165,840.94,840.03,1.7848977]
[1766683787672,0.68426165,840.93,840.03,1.7848977]
[1766683787868,0.68426165,840.92,840.03,1.7848977]
[1766683788067,0.68426165,840.91,840.03,1.7848977]
[1766683788273,0.68426165,840.9,840.03,1.7848977]
[1766683788472,0.68426165,840.89,840.04,1.7848977]
[1766683788673,0.68426165,840.88,840.04,1.7848977]
[1766683788872,0.68426165,840.87,840.04,1.7848977]
[1766683789169,0.68426165,840.86,840.04,1.7848977]
[1766683789472,0.68426165,840.85,840.04,1.7848977]
[1766683789672,0.68426165,840.84,840.04,1.7848977]
[1766683789867,0.68426165,840.83,840.04,1.7848977]
[1766683790067,0.68426165,840.82,840.04,1.7848977]
[1766683790373,0.68426165,840.81,840.04,1.7848977]
[1766683790569,0.68426165,840.8,840.04,1.7848977]
[1766683790773,0.68426165,840.79,840.04,1.7848977]
[1766683790970,0.68426165,840.78,840.04,1.7848977]
[1766683791171,0.89110815,841.05,840.04,1.7848977]
[1766683791375,0.68485644,841.04,840.04,1.7848977]
[1766683791574,0.68485644,841.03,840.04,1.7848977]
[1766683791774,0.68485644,841.02,840.04,1.7848977]
[1766683792075,0.68485644,841.01,840.04,1.7848977]
[1766683792275,0.68485644,841.0,840.04,1.7848977]
[1766683792571,0.68485644,840.99,840.04,1.7848977]
[1766683792871,0.68485644,840.98,840.04,1.7848977]
[1766683793074,0.68485644,840.97,840.04,1.7848977]
[1766683793374,0.68485644,840.96,840.04,1.7848977]
[1766683793576,0.68485644,840.95,840.04,1.7848977]
[1766683793776,0.68485644,840.94,840.04,1.7848977]
[1766683793976,0.68485644,840.93,840.04,1.7848977]
[1766683794176,0.68485644,840.92,840.04,1.7848977]
[1766683794472,0.68485644,840.91,840.04,1.7848977]
[1766683794673,0.68485644,840.9,840.04,1.7848977]
[1766683794876,0.68485644,840.89,840.04,1.7848977]
[1766683795080,0.68485644,840.88,840.04,1.7848977]
[1766683795276,0.68485644,840.87,840.04,1.7848977]
[1766683795572,0.68485644,840.86,840.04,1.7848977]
[1766683795776,0.68485644,840.85,840.04,1.7848977]
[1766683795976,0.68485644,840.84,840.04,1.7848977]
[1766683796276,0.68485644,840.83,840.04,1.7848977]
[1766683796476,0.68485644,840.82,840.04,1.7848977]
[1766683796679,0.68485644,840.81,840.04,1.7848977]
[1766683796880,0.68485644,840.8,840.04,1.7848977]
[1766683797180,0.68485644,840.79,840.04,1.7848977]
[1766683797380,0.68485644,840.78,840.04,1.7848977]
[1766683797580,0.89110815,841.05,840.04,1.7848977]
[1766683797880,13.37808999,841.04,840.04,1.7848977]
[1766683798080,0.68485185,841.03,840.04,1.7848977]
[1766683798278,0.68485185,841.02,840.04,1.7848977]
[1766683798482,0.68485185,841.01,840.04,1.7848977]
[1766683798778,0.68485185,841.0,840.04,1.7848977]
[1766683798978,0.68485185,840.99,840.04,1.7848977]
[1766683799178,0.68485185,840.98,840.04,1.7848977]
[1766683799376,0.68485185,840.97,840.04,1.7848977]
[1766683799580,0.68485185,840.96,840.04,1.7848977]
[1766683799778,0.68485185,840.95,840.04,1.7848977]
[1766683799977,0.68485185,840.94,840.04,1.7848977]
[1766683800182,0.68485185,840.93,840.04,1.7848977]
[1766683800378,0.68485185,840.92,840.04,1.7848977]
[1766683800680,0.68485185,840.91,840.04,1.7848977]
[1766683800880,0.68485185,840.9,840.04,1.7848977]
[1766683801084,0.68485185,840.89,840.04,1.7848977]
[1766683801278,0.68485185,840.88,840.04,1.7848977]
[1766683801483,0.68485185,840.87,840.04,1.7848977]
[1766683801684,0.68485185,840.86,839.99,1.7848977]
[1766683801884,0.68485185,840.85,839.92,1.7848977]
[1766683802084,0.68485185,840.84,839.9,1.7848977]
[1766683802280,0.68485185,840.83,839.9,1.7848977]
[1766683802584,0.68485185,840.82,839.86,1.7848977]
[1766683802784,0.68485185,840.81,839.86,1.7848977]
[1766683802984,0.68485185,840.8,839.86,1.7848977]
[1766683803280,0.68485185,840.79,839.86,1.7848977]
[1766683803485,0.68485185,840.78,839.85,1.7848977]
[1766683803681,0.68485185,840.77,839.85,1.7848977]
[1766683803880,0.68485185,840.76,839.85,1.7848977]
[1766683804080,0.68485185,840.75,839.85,1.7848977]
[1766683804282,0.68485185,840.74,839.85,1.7848977]
[1766683804486,0.68485185,840.73,839.84,1.7848977]
[1766683804781,0.68485185,840.72,839.84,1.7848977]
[1766683804982,0.68485185,840.71,839.84,1.7848977]
[1766683805182,0.68485185,840.7,839.84,1.7848977]
[1766683805484,0.68485185,840.69,839.84,1.7848977]
[1766683805685,0.68485185,840.68,839.84,1.7848977]
[1766683805882,0.68485185,840.67,839.84,1.7848977]
[1766683806185,0.89110815,840.94,839.84,1.7848977]
[1766683806381,0.68400052,840.93,839.83,1.7848977]
[1766683806586,0.68400052,840.92,839.83,1.7848977]
[1766683806785,0.68400052,840.91,839.83,1.7848977]
[1766683806986,0.68400052,840.9,839.83,1.7848977]
[1766683807185,0.68400052,840.89,839.83,1.7848977]
[1766683807382,0.68400052,840.88,839.83,1.7848977]
[1766683807587,0.68400052,840.87,839.83,1.7848977]
[1766683807785,0.68400052,840.86,839.83,1.7848977]
[1766683807985,0.68400052,840.85,839.83,1.7848977]
[1766683808286,0.68400052,840.84,839.82,1.7848977]
[1766683808487,0.68400052,840.83,839.82,1.7848977]
[1766683808685,0.68400052,840.82,839.82,1.7848977]
[1766683808887,0.68400052,840.81,839.82,1.7848977]
[1766683809087,0.68400052,840.8,839.82,1.7848977]
[1766683809288,0.68400052,840.79,839.82,1.7848977]
[1766683809485,0.68400052,840.78,839.82,1.7848977]
[1766683809683,0.68400052,840.77,839.82,1.7848977]
[1766683809888,0.68400052,840.76,839.82,1.7848977]
[1766683810088,0.68400052,840.75,839.82,1.7848977]
[1766683810284,0.68400052,840.74,839.82,1.7848977]
[1766683810488,0.68400052,840.73,839.82,1.7848977]
[1766683810688,0.68400052,840.72,839.82,1.7848977]
[1766683810888,0.68400052,840.71,839.82,1.7848977]
[1766683811086,0.68400052,840.7,839.82,1.7848977]
[1766683811285,0.89110815,840.97,839.81,1.7848977]
[1766683811491,0.89110815,840.95,839.8,1.7848977]
[1766683811692,0.6834035,840.94,839.8,1.7848977]
[1766683811889,0.6834035,840.93,839.8,1.7848977]
[1766683812090,0.6834035,840.92,839.8,1.7848977]
[1766683812291,0.6834035,840.91,839.8,1.7848977]
[1766683812491,0.6834035,840.9,839.79,1.7848977]
[1766683812790,0.6834035,840.89,839.79,1.7848977]
[1766683813089,0.6834035,840.88,839.79,1.7848977]
[1766683813290,0.6834035,840.87,839.79,1.7848977]
[1766683813490,0.6834035,840.86,839.79,1.7848977]
[1766683813790,0.6834035,840.85,839.79,1.7848977]
[1766683813992,0.6834035,840.84,839.79,1.7848977]
[1766683814188,0.6834035,840.83,839.79,1.7848977]
[1766683814389,0.6834035,840.82,839.79,1.7848977]
[1766683814593,0.6834035,840.81,839.79,1.7848977]
[1766683814789,0.89110815,840.96,839.79,1.7848977]
[1766683814790,0.6834035,840.8,839.79,1.7848977]
[1766683814987,0.6834035,840.79,839.79,1.7848977]
[1766683815192,0.6834035,840.78,839.79,1.7848977]
[1766683815391,0.89110815,840.96,839.79,1.7848977]
[1766683815392,0.6834035,840.77,839.79,1.7848977]
[1766683815589,0.6834035,840.76,839.79,1.7848977]
[1766683815791,0.6834035,840.75,839.79,1.7848977]
[1766683816093,0.6834035,840.74,839.79,1.7848977]
[1766683816293,0.6834035,840.73,839.75,1.7848977]
[1766683816492,0.6834035,840.72,839.74,1.7848977]
[1766683816692,0.6834035,840.71,839.67,1.7848977]
[1766683816894,0.6834035,840.71,835.54,0.52037471]
[1766683816895,0.6834035,840.7,839.66,1.7848977]
[1766683817091,0.6834035,840.69,839.66,1.7848977]
[1766683817294,0.6834035,840.68,839.67,1.7848977]
[1766683817491,0.6834035,840.67,839.67,1.7848977]
[1766683817693,0.6834035,840.66,839.67,1.7848977]
[1766683817888,0.6834035,840.65,839.68,1.7848977]
[1766683818093,0.6834035,840.64,839.68,1.7848977]
[1766683818291,0.6834035,840.63,839.68,1.7848977]
[1766683818492,0.6834035,840.62,839.68,1.7848977]
[1766683818794,0.89110815,840.89,839.68,1.7848977]
[1766683818995,0.68288413,840.88,839.68,1.7848977]
[1766683819292,0.68288413,840.87,839.67,10.61863503]
[1766683819490,0.68288413,840.86,839.67,10.61863503]
[1766683819693,0.68288413,840.85,839.67,10.61863503]
[1766683819894,0.68288413,840.84,839.67,10.61863503]
[1766683820093,0.68288413,840.83,839.67,10.61863503]
[1766683820293,0.89110815,840.89,839.67,10.61863503]
[1766683820294,0.68288413,840.82,839.67,10.61863503]
[1766683820492,0.68288413,840.81,839.67,10.61863503]
[1766683820696,0.68288413,840.8,839.67,10.61863503]
[1766683820894,0.89110815,840.9,839.67,10.61863503]
[1766683820895,0.68288413,840.79,839.67,10.61863503]
[1766683821193,0.68288413,840.78,839.67,10.61863503]
[1766683821397,0.68288413,840.77,839.66,1.7848977]
[1766683821597,0.68288413,840.76,839.66,1.7848977]
[1766683821797,0.68288413,840.75,839.66,1.7848977]
[1766683822097,0.68288413,840.74,839.66,1.7848977]
[1766683822294,0.68288413,840.73,839.66,1.7848977]
[1766683824401,0.68288413,840.73,839.65,1.7848977]
[1766683826400,0.68288413,840.72,839.65,1.7848977]
[1766683826601,0.68288413,840.71,839.65,1.7848977]
[1766683826902,0.68288413,840.7,839.65,1.7848977]
[1766683827197,0.68288413,840.69,839.65,1.7848977]
[1766683827401,0.68288413,840.68,839.65,1.7848977]
[1766683827697,0.68288413,840.67,839.65,1.7848977]
[1766683827898,0.68288413,840.66,839.65,1.7848977]
[1766683828100,0.68288413,840.65,839.65,1.7848977]
[1766683828397,0.89110815,840.92,839.65,1.7848977]
[1766683828698,13.47682147,840.91,839.65,1.7848977]
[1766683828897,0.68333711,840.9,839.65,1.7848977]
[1766683829100,0.68333711,840.89,839.65,1.7848977]
[1766683829400,0.68333711,840.88,839.65,1.7848977]
[1766683829598,0.68333711,840.87,839.65,1.7848977]
[1766683829797,0.68333711,840.86,839.65,1.7848977]
[1766683830001,0.68333711,840.85,839.65,1.7848977]
[1766683830202,0.68333711,840.84,839.65,1.7848977]
[1766683830400,0.68333711,840.83,839.65,1.7848977]
[1766683830599,0.68333711,840.82,839.65,1.7848977]
[1766683830801,12.79348436,840.91,839.65,1.7848977]
[1766683830802,0.68333711,840.81,839.65,1.7848977]
[1766683830999,0.68333711,840.8,839.65,1.7848977]
[1766683831199,0.68333711,840.79,839.65,1.7848977]
[1766683831500,0.68333711,840.78,839.65,1.7848977]
[1766683831701,0.68333711,840.77,839.65,1.7848977]
[1766683831902,0.68333711,840.76,839.65,1.7848977]
[1766683832103,0.68333711,840.75,839.65,1.7848977]
[1766683832300,0.68333711,840.74,839.65,1.7848977]
[1766683832505,0.68333711,840.73,839.65,1.7848977]
[1766683832802,0.68333711,840.72,839.65,1.7848977]
[1766683833000,0.68333711,840.71,839.65,1.7848977]
[1766683833305,0.68333711,840.7,839.65,1.7848977]
[1766683833504,0.68333711,840.69,839.65,1.7848977]
[1766683833700,0.68333711,840.68,839.65,1.7848977]
[1766683833902,0.68333711,840.67,839.65,1.7848977]
[1766683834106,0.68333711,840.66,839.65,1.7848977]
[1766683834303,0.68333711,840.65,839.65,1.7848977]
[1766683834507,0.68333711,840.64,839.65,1.7848977]
[1766683834806,55.05431863,840.82,839.65,1.7848977]
[1766683835106,0.68343472,840.81,839.65,1.7848977]
[1766683835306,0.68343472,840.8,839.65,1.7848977]
[1766683835506,0.68343472,840.79,839.65,1.7848977]
[1766683835707,0.68343472,840.78,839.65,1.7848977]
[1766683835906,0.68343472,840.77,839.65,1.7848977]
[1766683836108,0.68343472,840.76,839.65,1.7848977]
[1766683836306,0.68343472,840.75,839.66,1.7848977]
[1766683836508,0.68343472,840.74,839.66,1.7848977]
[1766683836809,0.68343472,840.73,839.66,1.7848977]
[1766683837006,0.68343472,840.72,839.66,1.7848977]
[1766683837207,0.68343472,840.71,839.66,1.7848977]
[1766683837406,0.68343472,840.7,839.66,1.7848977]
[1766683837712,0.68343472,840.69,839.66,1.7848977]
[1766683837907,0.68343472,840.68,839.66,1.7848977]
[1766683838308,0.68343472,840.68,839.67,1.7848977]
[1766683838513,0.68343472,840.68,839.66,1.7848977]
[1766683839409,0.68343472,840.68,839.67,1.7848977]
[1766683840312,0.68343472,840.68,839.68,1.7848977]
[1766683841712,0.68343472,840.67,839.68,1.7848977]
[1766683841910,0.68343472,840.66,839.68,1.7848977]
[1766683842113,0.68343472,840.65,839.68,1.7848977]
[1766683842413,0.68343472,840.64,839.69,1.7848977]
[1766683842611,0.68343472,840.63,839.69,1.7848977]
[1766683842811,0.68343472,840.62,839.69,1.7848977]
[1766683843015,0.68343472,840.61,839.69,1.7848977]
[1766683843209,0.89110815,840.87,839.69,1.7848977]
[1766683843410,0.68433794,840.86,839.7,1.7848977]
[1766683843614,0.68433794,840.85,839.7,10.8424464]
[1766683843910,0.68433794,840.84,839.7,10.8424464]
[1766683844111,0.68433794,840.83,839.7,10.8424464]
[1766683844310,0.68433794,840.82,839.71,1.7848977]
[1766683844510,0.68433794,840.81,839.71,1.7848977]
[1766683844713,0.68433794,840.8,839.71,1.7848977]
[1766683844909,0.68433794,840.79,839.71,1.7848977]
[1766683845213,0.68433794,840.78,839.71,1.7848977]
[1766683845409,0.68433794,840.77,839.71,1.7848977]
[1766683845615,0.68433794,840.76,839.71,1.7848977]
[1766683845815,0.68433794,840.75,839.71,1.7848977]
[1766683846015,0.68433794,840.74,839.71,1.7848977]
[1766683846210,0.68433794,840.73,839.71,1.7848977]
[1766683846411,0.68433794,840.73,839.7,9.0575487]
[1766683846412,0.68433794,840.72,839.72,1.7848977]
[1766683846615,0.68433794,840.71,839.72,1.7848977]
[1766683846914,0.68433794,840.7,839.72,1.7848977]
[1766683847210,0.68433794,840.69,839.72,1.7848977]
[1766683847413,0.68433794,840.68,839.72,1.7848977]
[1766683847612,0.68433794,840.67,839.72,1.7848977]
[1766683847817,0.68433794,840.66,839.72,1.7848977]
[1766683848010,0.68433794,840.65,839.72,1.7848977]
[1766683848211,0.68433794,840.64,839.72,1.7848977]
[1766683848414,0.68433794,840.63,839.73,1.7848977]
[1766683848612,0.68433794,840.62,839.73,1.7848977]
[1766683848913,0.68433794,840.61,839.73,1.7848977]
[1766683849116,0.68433794,840.6,839.73,1.7848977]
[1766683849317,0.68433794,840.59,839.73,1.7848977]
[1766683849616,0.68433794,840.58,839.73,1.7848977]
[1766683849915,0.68433794,840.57,839.73,1.7848977]
[1766683850116,0.89110815,840.84,839.73,1.7848977]
[1766683850413,14.59312751,840.83,839.73,1.7848977]
[1766683850611,0.68468916,840.82,839.73,1.7848977]
[1766683850816,0.68468916,840.81,839.73,1.7848977]
[1766683851112,0.68468916,840.8,839.73,1.7848977]
[1766683851309,0.68468916,840.79,839.73,1.7848977]
[1766683851513,0.68468916,840.78,839.73,1.7848977]
[1766683851712,0.68468916,840.77,839.73,1.7848977]
[1766683852014,0.68468916,840.76,839.73,1.7848977]
[1766683852213,0.68468916,840.75,839.73,1.7848977]
[1766683852511,0.68468916,840.74,839.74,1.7848977]
[1766683852715,13.90843835,840.83,839.74,1.7848977]
[1766683852716,0.68468916,840.73,839.74,1.7848977]
[1766683852914,0.68468916,840.72,839.74,1.7848977]
[1766683853113,0.68468916,840.71,839.74,1.7848977]
[1766683853318,0.68468916,840.7,839.74,1.7848977]
[1766683853616,0.68468916,840.69,839.74,1.7848977]
[1766683853816,0.68468916,840.68,839.74,1.7848977]
[1766683854118,0.68468916,840.67,839.74,1.7848977]
[1766683854317,0.68468916,840.66,839.74,1.7848977]
[1766683854515,0.68468916,840.65,839.74,1.7848977]
[1766683854714,0.68468916,840.64,839.74,1.7848977]
[1766683854915,0.68468916,840.63,839.74,1.7848977]
[1766683855115,0.68468916,840.62,839.74,1.7848977]
[1766683855315,0.68468916,840.61,839.74,1.7848977]
[1766683855520,0.68468916,840.6,839.74,1.7848977]
[1766683855718,0.89110815,840.82,839.74,1.7848977]
[1766683855719,0.68468916,840.59,839.74,1.7848977]
[1766683855918,0.68468916,840.58,839.75,1.7848977]
[1766683856119,0.68468916,840.57,839.75,1.7848977]
[1766683856320,0.89110815,840.82,839.75,1.7848977]
[1766683856516,0.68480664,840.81,839.75,1.7848977]
[1766683856820,0.68480664,840.8,839.75,1.7848977]
[1766683857020,0.68480664,840.79,839.75,1.7848977]
[1766683857321,0.68480664,840.78,839.75,1.7848977]
[1766683857521,0.68480664,840.77,839.75,1.7848977]
[1766683857721,0.68480664,840.76,839.75,1.7848977]
[1766683857921,0.68480664,840.75,839.75,1.7848977]
[1766683858120,0.68480664,840.74,839.75,1.7848977]
[1766683858318,0.68480664,840.73,839.76,1.7848977]
[1766683858621,0.20704303,840.6,839.76,1.7848977]
[1766683858822,0.68480664,840.59,839.76,10.60066357]
[1766683859117,0.68480664,840.58,839.76,10.60066357]
[1766683859316,0.68480664,840.57,839.76,10.60066357]
[1766683859623,0.68480664,840.56,839.76,10.60066357]
[1766683859919,0.68480664,840.55,839.76,10.60066357]
[1766683860123,0.68480664,840.54,839.76,10.60066357]
[1766683860421,0.68480664,840.53,839.77,1.7848977]
[1766683860618,0.68480664,840.52,839.77,1.7848977]
[1766683860921,13.30517272,840.6,839.77,1.7848977]
[1766683861121,0.68533735,840.59,839.77,1.7848977]
[1766683861317,0.68533735,840.58,839.78,1.7848977]
[1766683861519,0.68533735,840.57,839.78,1.7848977]
[1766683861721,0.68533735,840.56,839.78,1.7848977]
[1766683861921,0.68533735,840.55,839.78,1.7848977]
[1766683862121,0.68533735,840.54,839.78,1.7848977]
[1766683862420,0.68533735,840.53,839.78,1.7848977]
[1766683862619,0.68533735,840.52,839.78,1.7848977]
[1766683862818,0.68533735,840.51,839.78,1.7848977]
[1766683863017,0.20704303,840.6,839.78,1.7848977]
[1766683863217,0.68553838,840.59,839.78,1.7848977]
[1766683863417,0.68553838,840.58,839.78,1.7848977]
[1766683863717,0.68553838,840.57,839.78,1.7848977]
[1766683863920,0.68553838,840.56,839.78,1.7848977]
[1766683864117,0.20704303,840.6,839.78,1.7848977]
[1766683864118,0.68553838,840.55,839.78,1.7848977]
[1766683864318,0.68553838,840.54,839.78,1.7848977]
[1766683864520,0.68553838,840.53,839.78,1.7848977]
[1766683864722,0.68553838,840.52,839.78,1.7848977]
[1766683864921,0.68553838,840.51,839.78,1.7848977]
[1766683865124,0.20704303,840.6,839.78,1.7848977]
[1766683865323,0.68553803,840.59,839.78,1.7848977]
[1766683865521,0.68553803,840.58,839.78,1.7848977]
[1766683865722,0.68553803,840.57,839.78,1.7848977]
[1766683865922,0.68553803,840.56,839.78,1.7848977]
[1766683866224,13.40300559,840.55,839.78,1.7848977]
[1766683866422,0.68553803,840.54,839.78,1.7848977]
[1766683866622,0.68553803,840.53,839.78,1.7848977]
[1766683866819,0.68553803,840.52,839.78,1.7848977]
[1766683867025,12.71746756,840.55,839.78,1.7848977]
[1766683867026,0.68553803,840.51,839.78,1.7848977]
[1766683867228,12.71746756,840.55,839.78,1.7848977]
[1766683867424,0.68543902,840.54,839.78,1.7848977]
[1766683867626,0.68543902,840.53,839.78,1.7848977]
[1766683867827,0.68543902,840.52,839.78,1.7848977]
[1766683868026,12.71746756,840.55,839.8,1.7848977]
[1766683868224,12.71746756,840.55,839.82,1.7848977]
[1766683869329,0.20704303,840.6,839.82,1.7848977]
[1766683869529,0.68524853,840.59,839.82,1.7848977]
[1766683869729,0.68524853,840.58,839.82,1.7848977]
[1766683869930,0.68524853,840.57,839.82,1.7848977]
[1766683870226,0.20704303,840.6,839.82,1.7848977]
[1766683870430,0.68520095,840.59,839.81,1.7848977]
[1766683870628,0.68520095,840.58,839.81,1.7848977]
[1766683870929,0.68520095,840.57,839.81,1.7848977]
[1766683871127,0.20704303,840.6,839.81,1.7848977]
[1766683871327,0.68520089,840.59,839.81,1.7848977]
[1766683871530,0.20704303,840.6,839.81,1.7848977]
[1766683871531,0.68520089,840.58,839.81,1.7848977]
[1766683871730,0.68520089,840.57,839.81,1.7848977]
[1766683871931,0.20704303,840.6,839.81,1.7848977]
[1766683872130,0.68511036,840.59,839.81,1.7848977]
[1766683872427,0.68511036,840.58,839.81,1.7848977]
[1766683872631,0.20704303,840.6,839.81,1.7848977]
[1766683872832,0.68493709,840.59,839.81,1.7848977]
[1766683873128,0.68493709,840.58,839.81,1.7848977]
[1766683873327,0.20704303,840.6,839.81,1.7848977]
[1766683873631,0.68497808,840.59,839.81,1.7848977]
[1766683873927,0.68497808,840.58,839.81,1.7848977]
[1766683874227,0.89110815,840.87,839.83,1.7848977]
[1766683874528,0.20701963,840.84,839.95,1.7848977]
[1766683874733,0.68503711,840.83,839.95,10.66058319]
[1766683874932,0.68503711,840.82,839.95,10.66058319]
[1766683875232,0.68503711,840.81,839.95,10.66058319]
[1766683875528,0.68503711,840.8,839.95,8.87568549]
[1766683875730,0.68503711,840.79,839.95,8.87568549]
[1766683876028,0.68503711,840.78,839.95,8.87568549]
[1766683876233,0.68503711,840.77,839.95,8.87568549]
[1766683876428,0.20701963,840.84,839.95,10.66058319]
[1766683876633,0.20701963,840.84,840.01,1.7848977]
[1766683877235,0.20701963,840.84,839.99,1.7848977]
[1766683877634,0.20701963,840.84,840.0,1.7848977]
[1766683878332,0.68413426,840.83,839.98,1.7848977]
[1766683878532,0.68413426,840.82,839.89,1.7848977]
[1766683878836,0.68413426,840.81,839.89,1.7848977]
[1766683879034,0.68413426,840.8,839.89,1.7848977]
[1766683879235,0.20701963,840.84,839.89,1.7848977]
[1766683879431,0.68410363,840.83,839.89,1.7848977]
[1766683879637,0.68410363,840.82,839.89,1.7848977]
[1766683879837,0.68410363,840.81,839.89,1.7848977]
[1766683880036,0.68410363,840.8,839.89,1.7848977]
[1766683880236,13.09065147,840.83,839.89,1.7848977]
[1766683880435,0.68244148,840.82,839.89,1.7848977]
[1766683880635,0.68244148,840.81,839.89,1.7848977]
[1766683880835,13.09065147,840.83,839.89,1.7848977]
[1766683881037,0.68242465,840.82,839.89,1.7848977]
[1766683881334,0.68242465,840.81,839.88,1.7848977]
[1766683881638,13.09065147,840.83,839.88,1.7848977]
[1766683881836,0.68234161,840.82,839.88,1.7848977]
[1766683882035,0.68234161,840.81,839.88,1.7848977]
[1766683882241,13.09065147,840.83,839.88,1.7848977]
[1766683882441,0.68226796,840.82,839.88,1.7848977]
[1766683882738,0.20701963,840.84,839.88,1.7848977]
[1766683882941,0.68226792,840.83,839.88,1.7848977]
[1766683883142,0.68226792,840.82,839.88,1.7848977]
[1766683883342,0.20701963,840.84,839.88,1.7848977]
[1766683883643,0.68220236,840.83,839.88,1.7848977]
[1766683883838,0.68220236,840.82,839.88,1.7848977]
[1766683884039,0.20701963,840.84,839.88,1.7848977]
[1766683884238,0.6822023,840.83,839.87,1.7848977]
[1766683884442,0.6822023,840.82,839.87,1.7848977]
[1766683884642,0.20701963,840.84,839.87,1.7848977]
[1766683884840,0.68214448,840.83,839.87,1.7848977]
[1766683885041,0.68214448,840.82,839.87,1.7848977]